fUST/lending_fUST_20240818
["ID","MTS","AMOUNT","RATE_DAILY","PERIOD"]
[335203267,1723976831715,273.37336231,8e-05,2]
[335203268,1723976835114,-98.79662223,8.069e-05,2]
[335203269,1723976835135,-166.687614,8.076e-05,2]
[335203270,1723976835156,-166.687614,8.082e-05,2]
[335203271,1723976835178,-166.687614,8.089e-05,2]
[335203272,1723976835199,-166.687614,8.096e-05,2]
[335203273,1723976835220,-166.687614,8.103e-05,2]
[335203274,1723976835243,-166.687614,8.109e-05,2]
[335203275,1723976835264,-227.88054601,8.5e-05,2]
[335203276,1723976835288,-300.0,8.52e-05,2]
[335203277,1723976835309,-300.0,8.52e-05,2]
[335203278,1723976835330,-12375.64750158,8.521e-05,2]
[335203279,1723976841101,-4974.62207025,8.521e-05,2]
[335203282,1723976939032,154.69833824,7.954e-05,2]
[335203283,1723976965139,-273.37336231,8.436e-05,2]
[335203284,1723976965165,-300.0,8.52e-05,2]
[335203285,1723976965186,-300.0,8.52e-05,2]
[335203286,1723976965206,-1923.37563088,8.521e-05,2]
[335203318,1723977032224,-2186.98689848,8.436e-05,2]
[335203321,1723977032234,-300.0,8.52e-05,2]
[335203323,1723977032247,-300.0,8.52e-05,2]
[335203325,1723977032258,-17213.36994652,8.521e-05,2]
[335203327,1723977032270,-305.84891193,8.521e-05,2]
[335203330,1723977032283,-5614.41586574,8.521e-05,2]
[335203332,1723977032294,-2711.75574306,8.521e-05,2]
[335203334,1723977032304,-2238.57532529,8.521e-05,2]
[335203398,1723977038173,-546.74672462,8.436e-05,2]
[335203399,1723977038185,-6493.14510814,8.521e-05,2]
[335203400,1723977038198,-223.35767805,8.521e-05,2]
[335203401,1723977038208,-536.90221453,8.521e-05,2]
[335203402,1723977038218,-180.7743733,8.521e-05,2]
[335203403,1723977038227,-304.07413391,8.532e-05,2]
[335203404,1723977038238,-154.79103211,8.769e-05,2]
[335203405,1723977038247,-156.07985241,8.769e-05,2]
[335203406,1723977038258,-744.4024012,9.005e-05,2]
[335203407,1723977038269,-420.0,9.372e-05,2]
[335203408,1723977038279,-420.0,9.372e-05,2]
[335203409,1723977038289,-3070.11155902,9.697e-05,2]
[335203410,1723977038299,-555.52904835,0.0001,2]
[335203412,1723977038310,-766.52529379,0.0001,2]
[335203413,1723977038321,-154.82190538,0.0001026,2]
[335203414,1723977038333,-587.0,0.00010309,2]
[335203415,1723977038342,-587.0,0.00010309,2]
[335203416,1723977038352,-341.47339716,0.00010328,2]
[335203417,1723977038362,-55464.07600172,0.00010739,2]
[335203418,1723977038372,-918.5855329,0.00010959,2]
[335203419,1723977038382,-1270.88,0.00010959,2]
[335203420,1723977038392,-823.0,0.0001134,2]
[335203421,1723977038402,-492.0,0.0001134,2]
[335203422,1723977038413,-7629.711807,0.000118,2]
[335203423,1723977038423,-20792.59733498,0.00011842,2]
[335203424,1723977038433,-31948.3031463,0.000119,2]
[335203425,1723977038444,-7012.68235792,0.00011999,2]
[335203426,1723977038455,-8843.52115837,0.00012163,2]
[335203427,1723977038465,-9658.15828806,0.00012356,2]
[335203428,1723977038475,-500.0,0.00012428,2]
[335203429,1723977038486,-1152.0,0.00012474,2]
[335203430,1723977038496,-63896.6062926,0.00012531,2]
[335203431,1723977038506,-850.77095099,0.00012551,2]
[335203432,1723977038517,-898.59338305,0.00012782,2]
[335203433,1723977038527,-422.76904584,0.00012886,2]
[335203434,1723977038537,-181.82997886,0.00012898,2]
[335203435,1723977038547,-342.62154213,0.00012898,2]
[335203436,1723977038557,-817.42780859,0.00012898,2]
[335203437,1723977038567,-413.61733345,0.00012934,2]
[335203438,1723977038578,-7629.71180698,0.00012935,2]
[335203439,1723977038589,-493.25192424,0.00012971,2]
[335203440,1723977038599,-288.24477057,0.00012971,2]
[335203441,1723977038609,-322.11881907,0.00012971,2]
[335203442,1723977038620,-31948.3031463,0.00012979,2]
[335203443,1723977038630,-154.81199237,0.00012985,2]
[335203444,1723977038641,-553.13179842,0.00012991,2]
[335203445,1723977038652,-3884.01709153,0.00013,2]
[335203446,1723977038662,-862.33113123,0.00013,2]
[335203447,1723977038672,-500.0,0.00013082,2]
[335203448,1723977038683,-495.09081333,0.00013333,2]
[335203449,1723977038694,-986.26285621,0.0001365,2]
[335203450,1723977038703,-31948.3031463,0.00013678,2]
[335203451,1723977038713,-31948.3031463,0.00013679,2]
[335203452,1723977038723,-31948.3031463,0.00013689,2]
[335203453,1723977038733,-31948.3031463,0.00013689,2]
[335203454,1723977038744,-500.0,0.00013698,2]
[335203455,1723977038753,-500.0,0.00013698,2]
[335203456,1723977038763,-500.0,0.00013698,2]
[335203457,1723977038773,-352.89384617,0.00013698,2]
[335203458,1723977038783,-500.0,0.00013698,2]
[335203459,1723977038793,-500.0,0.00013698,2]
[335203460,1723977038803,-500.0,0.00013698,2]
[335203461,1723977038812,-500.0,0.00013698,2]
[335203462,1723977038822,-500.0,0.00013698,2]
[335203463,1723977038831,-243.26631301,0.00013698,2]
[335203464,1723977038842,-500.0,0.00013698,2]
[335203465,1723977038851,-544.02690175,0.00013698,2]
[335203466,1723977038861,-405.4467408,0.00013698,2]
[335203467,1723977038871,-500.0,0.00013698,2]
[335203468,1723977038882,-176.44571967,0.00013698,2]
[335203469,1723977038891,-307.79862362,0.00013698,2]
[335203470,1723977038901,-500.0,0.00013698,2]
[335203471,1723977038910,-331.44880488,0.00013698,2]
[335203472,1723977038920,-300.68857708,0.00013698,2]
[335203473,1723977038930,-500.0,0.00013698,2]
[335203474,1723977038939,-500.0,0.00013698,2]
[335203475,1723977038949,-576.86819692,0.00013698,2]
[335203476,1723977038958,-500.0,0.00013698,2]
[335203477,1723977038968,-500.0,0.00013698,2]
[335203478,1723977038978,-154.36739597,0.00013698,2]
[335203479,1723977038987,-2760.4345032,0.00013699,2]
[335203480,1723977038997,-1427.633579,0.00013699,2]
[335203481,1723977039008,-32791.7692538,0.00013699,2]
[335203482,1723977039017,-500.0,0.00013699,2]
[335203483,1723977039027,-500.0,0.00013699,2]
[335203484,1723977039036,-381.19543608,0.00013699,2]
[335203485,1723977039046,-500.0,0.00013699,2]
[335203486,1723977039235,-500.0,0.00013699,2]
[335203487,1723977039246,-500.0,0.00013699,2]
[335203488,1723977039255,-300.0,0.00013699,2]
[335203489,1723977039265,-500.0,0.00013699,2]
[335203490,1723977039274,-500.0,0.00013699,2]
[335203491,1723977039283,-500.0,0.00013699,2]
[335203492,1723977039293,-500.0,0.00013699,2]
[335203493,1723977039303,-500.0,0.00013699,2]
[335203494,1723977039312,-500.0,0.00013699,2]
[335203495,1723977039323,-500.0,0.00013699,2]
[335203496,1723977039333,-500.0,0.00013699,2]
[335203497,1723977039344,-500.0,0.00013699,2]
[335203498,1723977039353,-500.0,0.00013699,2]
[335203499,1723977039364,-500.0,0.00013699,2]
[335203500,1723977039374,-500.0,0.00013699,2]
[335203501,1723977039384,-500.0,0.00013699,2]
[335203502,1723977039394,-500.0,0.00013699,2]
[335203503,1723977039403,-500.0,0.00013699,2]
[335203504,1723977039413,-500.0,0.00013699,2]
[335203505,1723977039423,-500.0,0.00013699,2]
[335203506,1723977039445,-500.0,0.00013699,2]
[335203507,1723977039457,-500.0,0.00013699,2]
[335203508,1723977039468,-500.0,0.00013699,2]
[335203509,1723977039479,-500.0,0.00013699,2]
[335203510,1723977039491,-500.0,0.00013699,2]
[335203511,1723977039502,-500.0,0.00013699,2]
[335203512,1723977039514,-500.0,0.00013699,2]
[335203513,1723977039524,-500.0,0.00013699,2]
[335203514,1723977039535,-500.0,0.00013699,2]
[335203515,1723977039546,-500.0,0.00013699,2]
[335203516,1723977039557,-500.0,0.00013699,2]
[335203517,1723977039568,-500.0,0.00013699,2]
[335203518,1723977039580,-500.0,0.00013699,2]
[335203519,1723977039593,-500.0,0.00013699,2]
[335203520,1723977039605,-500.0,0.00013699,2]
[335203521,1723977039615,-500.0,0.00013699,2]
[335203523,1723977039626,-500.0,0.00013699,2]
[335203525,1723977039635,-500.0,0.00013699,2]
[335203526,1723977039647,-500.0,0.00013699,2]
[335203527,1723977039659,-500.0,0.00013699,2]
[335203528,1723977039670,-500.0,0.00013699,2]
[335203529,1723977039680,-500.0,0.00013699,2]
[335203530,1723977039689,-500.0,0.00013699,2]
[335203531,1723977039700,-500.0,0.00013699,2]
[335203532,1723977039711,-500.0,0.00013699,2]
[335203533,1723977039721,-500.0,0.00013699,2]
[335203534,1723977039732,-500.0,0.00013699,2]
[335203535,1723977039743,-500.0,0.00013699,2]
[335203536,1723977039755,-500.0,0.00013699,2]
[335203537,1723977039765,-515.96263552,0.00013699,2]
[335203538,1723977039775,-500.0,0.00013699,2]
[335203539,1723977039786,-500.0,0.00013699,2]
[335203540,1723977039796,-500.0,0.00013699,2]
[335203541,1723977039806,-500.0,0.00013699,2]
[335203542,1723977039816,-500.0,0.00013699,2]
[335203543,1723977039825,-500.0,0.00013699,2]
[335203544,1723977039836,-500.0,0.00013699,2]
[335203545,1723977039846,-500.0,0.00013699,2]
[335203546,1723977039856,-500.0,0.00013699,2]
[335203547,1723977039867,-500.0,0.00013699,2]
[335203548,1723977039877,-500.0,0.00013699,2]
[335203549,1723977039888,-500.0,0.00013699,2]
[335203550,1723977039898,-500.0,0.00013699,2]
[335203551,1723977039909,-500.0,0.00013699,2]
[335203552,1723977039921,-500.0,0.00013699,2]
[335203553,1723977039932,-500.0,0.00013699,2]
[335203554,1723977039942,-600.0,0.00013699,2]
[335203555,1723977039952,-500.0,0.00013699,2]
[335203556,1723977039962,-1613.0,0.00013722,2]
[335203557,1723977039973,-500.0,0.00013771,2]
[335203558,1723977039984,-20713.46482487,0.00014,4]
[335203560,1723977039994,-154.69833824,0.00014245,2]
[335203562,1723977040005,-154.69833824,0.00014245,2]
[335203563,1723977040015,-170.429093,0.00014247,2]
[335203564,1723977040025,-162.235656,0.00014247,2]
[335203565,1723977040035,-500.0,0.00014496,2]
[335203566,1723977040046,-5244.23039316,0.00015,2]
[335203567,1723977040057,-155.00357971,0.00015,2]
[335203568,1723977040068,-1110.8112074,0.00015,2]
[335203569,1723977040078,-782.46103051,0.00015,2]
[335203570,1723977040088,-2258.0,0.00015094,2]
[335203571,1723977040098,-500.0,0.00015258,2]
[335203572,1723977040108,-500.0,0.00015258,2]
[335203573,1723977040119,-420.10991811,0.000153,2]
[335203574,1723977040128,-247.77136186,0.00016,2]
[335203575,1723977040139,-1009.21986791,0.00016,2]
[335203577,1723977040149,-500.0,0.00016062,2]
[335203578,1723977040160,-500.0,0.00016062,2]
[335203580,1723977040170,-150.112234,0.000163,2]
[335203581,1723977040179,-150.112233,0.000163,2]
[335203582,1723977040191,-500.0,0.00016438,2]
[335203583,1723977040204,-167.27726661,0.00016438,2]
[335203584,1723977040213,-500.0,0.00016438,2]
[335203585,1723977040223,-587.52,0.00016438,2]
[335203586,1723977040233,-500.0,0.00016438,2]
[335203587,1723977040243,-500.0,0.00016438,2]
[335203588,1723977040252,-500.0,0.00016438,2]
[335203589,1723977040262,-502.4220924,0.00016438,2]
[335203590,1723977040275,-500.0,0.00016438,2]
[335203591,1723977040285,-500.0,0.00016438,2]
[335203592,1723977040295,-676.35,0.00016438,2]
[335203593,1723977040305,-500.0,0.00016438,2]
[335203594,1723977040316,-500.0,0.00016438,2]
[335203596,1723977040327,-500.0,0.00016438,2]
[335203598,1723977040340,-500.0,0.00016438,2]
[335203600,1723977040350,-506.27,0.00016438,2]
[335203601,1723977040360,-514.81389458,0.00016438,2]
[335203602,1723977040371,-500.0,0.00016438,2]
[335203603,1723977040381,-500.0,0.00016438,2]
[335203604,1723977040391,-682.81,0.00016438,2]
[335203605,1723977040401,-383.34210581,0.00016438,2]
[335203606,1723977040410,-500.0,0.00016438,2]
[335203608,1723977040422,-500.0,0.00016438,2]
[335203610,1723977040432,-500.0,0.00016438,2]
[335203612,1723977040444,-1271.7,0.00016438,2]
[335203613,1723977040454,-516.1702096,0.00016438,2]
[335203614,1723977040464,-500.0,0.00016438,2]
[335203615,1723977040474,-500.0,0.00016438,2]
[335203616,1723977040484,-522.37444784,0.00016438,2]
[335203617,1723977040495,-500.0,0.00016438,2]
[335203618,1723977040505,-500.0,0.00016438,2]
[335203619,1723977040514,-500.0,0.00016438,2]
[335203620,1723977040524,-500.0,0.00016438,2]
[335203621,1723977040535,-500.0,0.00016438,2]
[335203622,1723977040545,-200.0,0.00016438,2]
[335203623,1723977040555,-500.0,0.00016438,2]
[335203624,1723977040565,-500.0,0.00016438,2]
[335203625,1723977040575,-654.61,0.00016438,2]
[335203626,1723977040586,-500.0,0.00016438,2]
[335203627,1723977040597,-506.76095318,0.00016438,2]
[335203628,1723977040607,-2005.0,0.00016438,10]
[335203629,1723977040618,-500.0,0.00016438,2]
[335203630,1723977040628,-500.0,0.00016438,2]
[335203631,1723977040638,-155.97998199,0.00016438,2]
[335203632,1723977040649,-500.0,0.00016438,2]
[335203633,1723977040659,-625.8,0.00016438,2]
[335203634,1723977040669,-500.0,0.00016438,2]
[335203635,1723977040679,-500.0,0.00016438,2]
[335203636,1723977040688,-500.0,0.00016438,2]
[335203637,1723977040700,-500.0,0.00016438,2]
[335203638,1723977040710,-500.0,0.00016438,2]
[335203639,1723977040721,-494.2044068,0.00016438,2]
[335203640,1723977040731,-500.0,0.00016438,2]
[335203641,1723977040742,-500.0,0.00016438,2]
[335203642,1723977040752,-572.16363907,0.00016438,2]
[335203643,1723977040762,-500.0,0.00016438,2]
[335203644,1723977040772,-500.0,0.00016438,2]
[335203645,1723977040783,-500.0,0.00016438,2]
[335203646,1723977040793,-414.96297049,0.00016438,2]
[335203647,1723977040804,-500.0,0.00016438,2]
[335203648,1723977040814,-500.0,0.00016438,2]
[335203649,1723977040824,-500.0,0.00016438,2]
[335203650,1723977040834,-500.0,0.00016438,2]
[335203651,1723977040844,-500.0,0.00016438,2]
[335203652,1723977040853,-500.0,0.00016438,2]
[335203653,1723977040863,-504.69018362,0.00016438,2]
[335203654,1723977040874,-500.0,0.00016438,2]
[335203655,1723977040884,-500.0,0.00016438,2]
[335203656,1723977040895,-500.0,0.00016438,2]
[335203657,1723977040906,-500.0,0.00016438,2]
[335203658,1723977040916,-530.35,0.00016438,2]
[335203659,1723977040927,-522.86101654,0.00016438,2]
[335203660,1723977040936,-500.0,0.00016438,2]
[335203661,1723977040948,-500.0,0.00016438,2]
[335203662,1723977040958,-500.0,0.00016438,2]
[335203663,1723977040970,-500.0,0.00016438,2]
[335203664,1723977040980,-539.49,0.00016438,2]
[335203665,1723977040990,-500.0,0.00016438,2]
[335203666,1723977041000,-500.0,0.00016438,2]
[335203667,1723977041009,-500.0,0.00016438,2]
[335203668,1723977041020,-656.2,0.00016438,2]
[335203669,1723977041030,-500.0,0.00016438,2]
[335203670,1723977041040,-500.0,0.00016438,2]
[335203671,1723977041050,-500.0,0.00016438,2]
[335203672,1723977041060,-521.18586828,0.00016438,2]
[335203673,1723977041070,-500.0,0.00016438,2]
[335203674,1723977041080,-500.0,0.00016438,2]
[335203675,1723977041090,-500.0,0.00016438,2]
[335203676,1723977041100,-500.0,0.00016438,2]
[335203677,1723977041110,-635.5952939,0.00016438,2]
[335203678,1723977041120,-500.0,0.00016438,2]
[335203679,1723977041130,-500.0,0.00016438,2]
[335203680,1723977041140,-500.0,0.00016438,2]
[335203681,1723977041150,-500.0,0.00016438,2]
[335203682,1723977041160,-500.0,0.00016438,2]
[335203683,1723977041170,-873.63,0.00016438,2]
[335203684,1723977041180,-500.0,0.00016438,2]
[335203685,1723977041193,-500.0,0.00016438,2]
[335203686,1723977041202,-500.0,0.00016438,2]
[335203687,1723977041212,-579.87,0.00016438,2]
[335203688,1723977041221,-500.0,0.00016438,2]
[335203689,1723977041231,-500.0,0.00016438,2]
[335203690,1723977041240,-500.0,0.00016438,2]
[335203691,1723977041250,-500.0,0.00016438,2]
[335203692,1723977041259,-500.0,0.00016438,2]
[335203693,1723977041269,-500.0,0.00016438,2]
[335203694,1723977041279,-500.0,0.00016438,2]
[335203695,1723977041290,-500.0,0.00016438,2]
[335203696,1723977041300,-538.46934592,0.00016438,2]
[335203697,1723977041310,-550.16,0.00016438,2]
[335203698,1723977041320,-500.0,0.00016438,2]
[335203699,1723977041330,-502.12800461,0.00016438,2]
[335203700,1723977041344,-500.0,0.00016438,2]
[335203701,1723977041355,-500.0,0.00016438,2]
[335203702,1723977041365,-726.74,0.00016438,2]
[335203703,1723977041374,-500.0,0.00016438,2]
[335203704,1723977041384,-500.0,0.00016438,2]
[335203705,1723977041395,-500.0,0.00016438,2]
[335203706,1723977041405,-866.23,0.00016438,2]
[335203707,1723977041415,-500.0,0.00016438,2]
[335203708,1723977041426,-500.0,0.00016438,2]
[335203709,1723977041436,-500.0,0.00016438,2]
[335203710,1723977041450,-284.11638102,0.00016438,2]
[335203711,1723977041465,-500.0,0.00016438,2]
[335203712,1723977041475,-500.0,0.00016438,2]
[335203713,1723977041485,-500.0,0.00016438,2]
[335203714,1723977041495,-500.0,0.00016438,2]
[335203715,1723977041505,-500.0,0.00016438,2]
[335203716,1723977041515,-500.0,0.00016438,2]
[335203717,1723977041525,-500.0,0.00016438,2]
[335203718,1723977041534,-500.0,0.00016438,2]
[335203719,1723977041544,-415.65681988,0.00016438,2]
[335203720,1723977041554,-500.0,0.00016438,2]
[335203721,1723977041564,-655.38,0.00016438,2]
[335203722,1723977041574,-500.0,0.00016438,2]
[335203723,1723977041584,-500.0,0.00016438,2]
[335203724,1723977041594,-500.0,0.00016438,2]
[335203725,1723977041604,-500.0,0.00016438,2]
[335203726,1723977041614,-500.0,0.00016438,2]
[335203727,1723977041624,-500.0,0.00016438,2]
[335203728,1723977041634,-648.61,0.00016438,2]
[335203729,1723977041644,-500.0,0.00016438,2]
[335203730,1723977041654,-500.0,0.00016438,2]
[335203731,1723977041664,-509.09326815,0.00016438,2]
[335203732,1723977041674,-500.0,0.00016438,2]
[335203733,1723977041684,-619.88,0.00016438,2]
[335203734,1723977041695,-500.0,0.00016438,2]
[335203735,1723977041705,-511.2007316,0.00016438,2]
[335203736,1723977041715,-1022.16,0.00016438,2]
[335203737,1723977041724,-500.0,0.00016438,2]
[335203738,1723977041734,-622.22677085,0.00016438,2]
[335203739,1723977041742,-500.0,0.00016438,2]
[335203740,1723977041752,-500.0,0.00016438,2]
[335203741,1723977041762,-500.0,0.00016438,2]
[335203742,1723977041772,-500.0,0.00016438,2]
[335203743,1723977041783,-500.0,0.00016438,2]
[335203744,1723977041795,-506.91,0.00016438,2]
[335203745,1723977041805,-500.0,0.00016438,2]
[335203746,1723977041815,-500.0,0.00016438,2]
[335203747,1723977041826,-500.0,0.00016438,2]
[335203748,1723977041836,-506.51232328,0.00016438,2]
[335203749,1723977041847,-500.0,0.00016438,2]
[335203750,1723977041858,-500.0,0.00016438,2]
[335203751,1723977041869,-500.0,0.00016438,2]
[335203752,1723977041880,-500.0,0.00016438,2]
[335203753,1723977041892,-500.0,0.00016438,2]
[335203754,1723977041902,-500.0,0.00016438,2]
[335203755,1723977041913,-580.95,0.00016438,2]
[335203756,1723977041925,-500.0,0.00016438,2]
[335203757,1723977041936,-570.15,0.00016438,2]
[335203758,1723977041948,-503.12940545,0.00016438,2]
[335203759,1723977041957,-500.0,0.00016438,2]
[335203760,1723977041967,-501.4158508,0.00016438,2]
[335203761,1723977041977,-500.0,0.00016438,2]
[335203762,1723977041986,-500.0,0.00016438,2]
[335203763,1723977041997,-796.38,0.00016438,2]
[335203764,1723977042007,-500.0,0.00016438,2]
[335203765,1723977042017,-500.0,0.00016438,2]
[335203766,1723977042027,-500.0,0.00016438,2]
[335203767,1723977042037,-500.0,0.00016438,2]
[335203768,1723977042047,-500.0,0.00016438,2]
[335203769,1723977042057,-560.6,0.00016438,2]
[335203770,1723977042067,-500.0,0.00016438,2]
[335203771,1723977042213,-501.88739602,0.00016438,2]
[335203772,1723977042223,-500.0,0.00016438,2]
[335203773,1723977042232,-500.0,0.00016438,2]
[335203774,1723977042242,-501.22456477,0.00016438,2]
[335203775,1723977042252,-504.26190343,0.00016438,2]
[335203776,1723977042261,-500.0,0.00016438,2]
[335203777,1723977042271,-500.0,0.00016438,2]
[335203778,1723977042280,-500.0,0.00016438,2]
[335203779,1723977042290,-500.0,0.00016438,2]
[335203780,1723977042299,-500.0,0.00016438,2]
[335203781,1723977042309,-500.0,0.00016438,2]
[335203782,1723977042318,-242.74466697,0.00016438,2]
[335203783,1723977042327,-500.0,0.00016438,2]
[335203784,1723977042339,-500.0,0.00016438,2]
[335203785,1723977042350,-595.53,0.00016438,2]
[335203786,1723977042359,-644.57777291,0.00016438,2]
[335203787,1723977042368,-500.0,0.00016438,2]
[335203788,1723977042378,-500.0,0.00016438,2]
[335203789,1723977042388,-500.0,0.00016438,2]
[335203790,1723977042398,-500.0,0.00016438,2]
[335203791,1723977042408,-500.0,0.00016438,2]
[335203792,1723977042422,-500.0,0.00016438,2]
[335203793,1723977042434,-500.0,0.00016438,2]
[335203794,1723977042446,-500.0,0.00016438,2]
[335203795,1723977042458,-500.0,0.00016438,2]
[335203796,1723977042469,-500.0,0.00016438,2]
[335203797,1723977042479,-527.37,0.00016438,2]
[335203798,1723977042491,-995.23,0.00016438,2]
[335203799,1723977042503,-471.66054734,0.00016438,2]
[335203800,1723977042513,-500.0,0.00016438,2]
[335203801,1723977042524,-500.0,0.00016438,2]
[335203802,1723977042536,-500.0,0.00016438,2]
[335203803,1723977042547,-503.82090815,0.00016438,2]
[335203804,1723977042559,-800.93,0.00016438,2]
[335203805,1723977042570,-500.0,0.00016438,2]
[335203808,1723977042579,-500.0,0.00016438,2]
[335203810,1723977042590,-500.0,0.00016438,2]
[335203812,1723977042599,-500.0,0.00016438,2]
[335203814,1723977042609,-500.0,0.00016438,2]
[335203816,1723977042618,-500.0,0.00016438,2]
[335203818,1723977042628,-500.0,0.00016438,2]
[335203821,1723977042637,-500.0,0.00016438,2]
[335203824,1723977042647,-500.0,0.00016438,2]
[335203826,1723977042656,-500.0,0.00016438,2]
[335203829,1723977042666,-500.0,0.00016438,2]
[335203832,1723977042676,-500.0,0.00016438,2]
[335203835,1723977042685,-500.0,0.00016438,2]
[335203837,1723977042696,-500.0,0.00016438,2]
[335203839,1723977042706,-500.0,0.00016438,2]
[335203841,1723977042716,-398.32735633,0.00016438,2]
[335203843,1723977042725,-506.2734219,0.00016438,2]
[335203845,1723977042736,-504.98050766,0.00016438,2]
[335203847,1723977042745,-500.0,0.00016438,2]
[335203849,1723977042755,-500.0,0.00016438,2]
[335203851,1723977042764,-501.47494704,0.00016438,2]
[335203853,1723977042774,-500.0,0.00016438,2]
[335203855,1723977042786,-500.0,0.00016438,2]
[335203857,1723977042796,-500.0,0.00016438,2]
[335203859,1723977042807,-500.0,0.00016438,2]
[335203861,1723977042816,-520.733221,0.00016438,2]
[335203862,1723977042826,-500.0,0.00016438,2]
[335203863,1723977042835,-153.153358,0.00016438,2]
[335203864,1723977042845,-500.0,0.00016438,2]
[335203865,1723977042855,-500.0,0.00016438,2]
[335203867,1723977042864,-500.0,0.00016438,2]
[335203869,1723977042874,-500.0,0.00016438,2]
[335203871,1723977042884,-500.0,0.00016438,2]
[335203873,1723977042893,-153.153358,0.00016438,2]
[335203875,1723977042902,-500.0,0.00016438,2]
[335203877,1723977042911,-500.0,0.00016438,2]
[335203879,1723977042920,-678.55,0.00016438,2]
[335203880,1723977042929,-202.48729624,0.00016438,2]
[335203881,1723977042939,-500.0,0.00016438,2]
[335203882,1723977042951,-1000.0,0.00016438,2]
[335203883,1723977042960,-500.0,0.00016438,2]
[335203884,1723977042970,-500.0,0.00016438,2]
[335203885,1723977042979,-500.0,0.00016438,2]
[335203886,1723977042988,-398.80764802,0.00016438,2]
[335203887,1723977042998,-505.01363414,0.00016438,2]
[335203888,1723977043007,-185.56289874,0.00016438,2]
[335203889,1723977043017,-500.0,0.00016438,2]
[335203890,1723977043026,-500.0,0.00016438,2]
[335203891,1723977043035,-500.0,0.00016438,2]
[335203893,1723977043044,-500.0,0.00016438,2]
[335203895,1723977043055,-695.94,0.00016438,2]
[335203897,1723977043064,-500.0,0.00016438,2]
[335203900,1723977043075,-500.0,0.00016438,2]
[335203901,1723977043085,-500.0,0.00016438,2]
[335203902,1723977043095,-500.0,0.00016438,2]
[335203903,1723977043104,-500.0,0.00016438,2]
[335203904,1723977043113,-500.0,0.00016438,2]
[335203905,1723977043123,-500.0,0.00016438,2]
[335203907,1723977043132,-500.0,0.00016438,2]
[335203909,1723977043141,-500.0,0.00016438,2]
[335203911,1723977043151,-500.0,0.00016438,2]
[335203912,1723977043161,-500.0,0.00016438,2]
[335203913,1723977043171,-500.0,0.00016438,2]
[335203914,1723977043181,-500.0,0.00016438,2]
[335203915,1723977043193,-505.24353292,0.00016438,2]
[335203916,1723977043203,-500.0,0.00016438,2]
[335203917,1723977043214,-500.0,0.00016438,2]
[335203918,1723977043224,-679.1,0.00016438,2]
[335203920,1723977043235,-500.0,0.00016438,2]
[335203921,1723977043246,-500.0,0.00016438,2]
[335203922,1723977043256,-500.0,0.00016438,2]
[335203923,1723977043268,-500.0,0.00016438,2]
[335203924,1723977043279,-515.17274686,0.00016438,2]
[335203925,1723977043289,-500.0,0.00016438,2]
[335203926,1723977043299,-500.0,0.00016438,2]
[335203927,1723977043311,-500.0,0.00016438,2]
[335203928,1723977043323,-1145.53,0.00016438,2]
[335203929,1723977043337,-500.0,0.00016438,2]
[335203930,1723977043348,-500.0,0.00016438,2]
[335203931,1723977043360,-500.0,0.00016438,2]